[Event "2026 European Womens Championship"]
[Site "Batumi, GE"]
[Date "2026.06.01"]
[Round "7"]
[White "Mkrtchian, Lilit"]
[Black "Pogorelskikh, Sofia"]
[Result "1/2-1/2"]
[Board "63"]
[TimeControl "5400+30"]
[WhiteFideId "13300601"]
[BlackFideId "44164548"]
[WhiteElo "2366"]
[BlackElo "2284"]
[WhiteTitle "IM"]
[BlackTitle "WGM"]
[WhiteClock "0:04:20"]
[BlackClock "0:22:01"]
[Variant "Standard"]

1. d4 {[%clk 1:30:56]}  Nf6 {[%clk 1:30:08]} 2. Nf3 {[%clk 1:31:05]}  d5 {[%clk 1:30:19]} 3. e3 {[%clk 1:31:13]}  c5 {[%clk 1:28:07]}
4. Be2 {[%clk 1:29:43]}  Nc6 {[%clk 1:27:08]} 5. O-O {[%clk 1:29:57]}  e6 {[%clk 1:25:51]} 6. b3 {[%clk 1:23:44]}  Be7 {[%clk 1:24:21]}
7. Bb2 {[%clk 1:20:10]}  O-O {[%clk 1:22:33]} 8. Nbd2 {[%clk 1:15:48]}  b6 {[%clk 1:20:15]} 9. Ne5 {[%clk 1:10:21]}  Bb7 {[%clk 1:14:46]}
10. f4 {[%clk 1:10:38]}  Ne4 {[%clk 1:05:59]} 11. Nxe4 {[%clk 1:02:52]}  dxe4 {[%clk 1:06:03]} 12. Nxc6 {[%clk 0:42:26]}  Bxc6 {[%clk 1:06:24]}
13. c4 {[%clk 0:42:10]}  a5 {[%clk 1:00:14]} 14. Qc2 {[%clk 0:37:57]}  Qc8 {[%clk 0:57:29]} 15. Rad1 {[%clk 0:37:56]}  Rd8 {[%clk 0:54:12]}
16. Rd2 {[%clk 0:33:01]}  Ra7 {[%clk 0:50:40]} 17. Rfd1 {[%clk 0:29:11]}  f5 {[%clk 0:43:17]} 18. d5 {[%clk 0:23:28]}  Be8 {[%clk 0:41:12]}
19. dxe6 {[%clk 0:14:37]}  Rxd2 {[%clk 0:41:29]} 20. Qxd2 {[%clk 0:14:56]}  Bc6 {[%clk 0:37:42]} 21. Be5 {[%clk 0:07:41]}  Qxe6 {[%clk 0:34:44]}
22. Qc3 {[%clk 0:07:55]}  Bf8 {[%clk 0:32:19]} 23. Rd8 {[%clk 0:04:47]}  Rd7 {[%clk 0:32:27]} 24. Rxd7 {[%clk 0:03:19]}  Qxd7 {[%clk 0:32:36]}
25. a4 {[%clk 0:03:36]}  Bd6 {[%clk 0:29:57]} 26. Kf2 {[%clk 0:03:21]}  Qe7 {[%clk 0:29:12]} 27. Bxd6 {[%clk 0:03:13]}  Qxd6 {[%clk 0:29:32]}
28. g3 {[%clk 0:03:19]}  Be8 {[%clk 0:27:49]} 29. Qb2 {[%clk 0:03:36]}  Qh6 {[%clk 0:22:14]} 30. h4 {[%clk 0:03:57]}  Qd6 {[%clk 0:22:01]}
31. Qc3 {[%clk 0:04:20]} 1/2-1/2

[Event "2026 European Womens Championship"]
[Site "Batumi, GE"]
[Date "2026.06.01"]
[Round "7"]
[White "Milliet, Sophie"]
[Black "Safarli, Josefine"]
[Result "1-0"]
[Board "64"]
[TimeControl "5400+30"]
[WhiteFideId "623725"]
[BlackFideId "12900460"]
[WhiteElo "2361"]
[BlackElo "2253"]
[WhiteTitle "IM"]
[BlackTitle "WGM"]
[WhiteClock "0:02:46"]
[BlackClock "0:09:29"]
[Variant "Standard"]

1. Nf3 {[%clk 1:30:56]}  d5 {[%clk 1:30:51]} 2. c4 {[%clk 1:31:21]}  e6 {[%clk 1:31:16]} 3. g3 {[%clk 1:31:45]}  dxc4 {[%clk 1:31:17]}
4. Qa4+ {[%clk 1:31:07]}  Nd7 {[%clk 1:31:31]} 5. Bg2 {[%clk 1:29:38]}  a6 {[%clk 1:30:45]} 6. Qxc4 {[%clk 1:25:01]}  b5 {[%clk 1:29:39]}
7. Qc2 {[%clk 1:24:49]}  Bb7 {[%clk 1:29:59]} 8. Nc3 {[%clk 1:24:09]}  Ngf6 {[%clk 1:27:16]} 9. a4 {[%clk 1:23:23]}  b4 {[%clk 1:26:24]}
10. Nd1 {[%clk 1:23:18]}  Ne5 {[%clk 1:18:38]} 11. Ne3 {[%clk 1:20:12]}  Nxf3+ {[%clk 1:18:50]} 12. Bxf3 {[%clk 1:20:25]}  Bxf3 {[%clk 1:18:51]}
13. exf3 {[%clk 1:20:51]}  c5 {[%clk 1:17:28]} 14. b3 {[%clk 1:19:32]}  Be7 {[%clk 1:16:49]} 15. Bb2 {[%clk 1:19:53]}  O-O {[%clk 1:16:58]}
16. O-O {[%clk 1:14:05]}  Nd5 {[%clk 1:11:18]} 17. Rad1 {[%clk 1:10:48]}  Rc8 {[%clk 1:08:43]} 18. f4 {[%clk 1:03:35]}  Bf6 {[%clk 1:00:57]}
19. Be5 {[%clk 0:58:48]}  Bxe5 {[%clk 0:58:59]} 20. fxe5 {[%clk 0:59:14]}  Qc7 {[%clk 0:58:45]} 21. Nc4 {[%clk 0:58:33]}  Ne7 {[%clk 0:57:38]}
22. Nd6 {[%clk 0:57:26]}  Rcd8 {[%clk 0:50:52]} 23. d4 {[%clk 0:56:04]}  f6 {[%clk 0:50:43]} 24. Qc4 {[%clk 0:42:43]}  Nd5 {[%clk 0:47:18]}
25. dxc5 {[%clk 0:42:32]}  fxe5 {[%clk 0:46:30]} 26. Rfe1 {[%clk 0:40:37]}  Qa7 {[%clk 0:37:16]} 27. Rd2 {[%clk 0:37:06]}  Rf3 {[%clk 0:30:15]}
28. Rxe5 {[%clk 0:27:33]}  Rc3 {[%clk 0:29:16]} 29. Qg4 {[%clk 0:27:44]}  Nc7 {[%clk 0:26:06]} 30. Rg5 {[%clk 0:19:53]}  Rc1+ {[%clk 0:23:06]}
31. Kg2 {[%clk 0:20:20]}  Qa8+ {[%clk 0:23:18]} 32. Kh3 {[%clk 0:20:18]}  Rd7 {[%clk 0:23:09]} 33. Nc4 {[%clk 0:08:05]}  Re7 {[%clk 0:18:33]}
34. Rd6 {[%clk 0:05:31]}  h6 {[%clk 0:16:44]} 35. Rh5 {[%clk 0:03:33]}  Rf7 {[%clk 0:12:05]} 36. Qd4 {[%clk 0:03:21]}  Qh1 {[%clk 0:10:32]}
37. Rd8+ {[%clk 0:03:40]}  Kh7 {[%clk 0:09:33]} 38. Rxh6+ {[%clk 0:02:51]}  Kxh6 {[%clk 0:08:40]} 39. Qh4+ {[%clk 0:01:54]}  Kg6 {[%clk 0:09:07]}
40. Ne5+ {[%clk 0:02:19]}  Kf5 {[%clk 0:09:29]} 41. Qf4# {[%clk 0:02:46]} 1-0

[Event "2026 European Womens Championship"]
[Site "Batumi, GE"]
[Date "2026.06.01"]
[Round "7"]
[White "Mirzoeva, Elmira"]
[Black "Socko, Monika"]
[Result "0-1"]
[Board "65"]
[TimeControl "5400+30"]
[WhiteFideId "4127951"]
[BlackFideId "1106619"]
[WhiteElo "2265"]
[BlackElo "2355"]
[WhiteTitle "WGM"]
[BlackTitle "GM"]
[WhiteClock "0:22:54"]
[BlackClock "0:30:08"]
[Variant "Standard"]

1. d4 {[%clk 1:30:53]}  Nf6 {[%clk 1:30:57]} 2. c4 {[%clk 1:31:11]}  e6 {[%clk 1:31:22]} 3. Nc3 {[%clk 1:31:26]}  Bb4 {[%clk 1:31:32]}
4. Qc2 {[%clk 1:31:43]}  d6 {[%clk 1:30:09]} 5. Bd2 {[%clk 1:31:43]}  c5 {[%clk 1:27:09]} 6. dxc5 {[%clk 1:31:41]}  Bxc5 {[%clk 1:24:25]}
7. Nf3 {[%clk 1:31:43]}  O-O {[%clk 1:23:23]} 8. e3 {[%clk 1:31:22]}  Nc6 {[%clk 1:21:53]} 9. a3 {[%clk 1:31:01]}  d5 {[%clk 1:19:01]}
10. Rd1 {[%clk 1:30:39]}  Qe7 {[%clk 1:14:11]} 11. Be2 {[%clk 1:26:57]}  Rd8 {[%clk 1:05:03]} 12. O-O {[%clk 1:16:10]}  Bd7 {[%clk 1:01:39]}
13. b4 {[%clk 1:10:04]}  Bd6 {[%clk 0:57:59]} 14. cxd5 {[%clk 1:08:18]}  exd5 {[%clk 0:56:37]} 15. Qb3 {[%clk 0:53:32]}  Bg4 {[%clk 0:49:35]}
16. Rfe1 {[%clk 0:43:34]}  Rac8 {[%clk 0:46:17]} 17. h3 {[%clk 0:38:40]}  Be6 {[%clk 0:41:02]} 18. Nb5 {[%clk 0:31:00]}  Bb8 {[%clk 0:39:53]}
19. Nbd4 {[%clk 0:28:44]}  Nxd4 {[%clk 0:34:05]} 20. Nxd4 {[%clk 0:28:40]}  Qd6 {[%clk 0:30:08]} 21. f4 {[%clk 0:25:53]}  Ne4 {[%clk 0:25:28]}
22. Nxe6 {[%clk 0:22:04]}  Qxe6 {[%clk 0:25:15]} 23. Bd3 {[%clk 0:14:21]}  Rc6 {[%clk 0:15:40]} 24. b5 {[%clk 0:09:24]}  Rcc8 {[%clk 0:15:33]}
25. Bb4 {[%clk 0:09:27]}  Qb6 {[%clk 0:14:16]} 26. a4 {[%clk 0:05:46]}  a5 {[%clk 0:08:15]} 27. bxa6 {[%clk 0:04:32]}  bxa6 {[%clk 0:06:07]}
28. Rb1 {[%clk 0:01:54]}  Bxf4 {[%clk 0:05:12]} 29. Bxe4 {[%clk 0:02:08]}  dxe4 {[%clk 0:05:38]} 30. Be7 {[%clk 0:02:28]}  Qxb3 {[%clk 0:05:32]}
31. Rxb3 {[%clk 0:02:56]}  Bg3 {[%clk 0:03:16]} 32. Bxd8 {[%clk 0:01:51]}  Bxe1 {[%clk 0:03:44]} 33. Bc7 {[%clk 0:01:59]}  h5 {[%clk 0:03:02]}
34. Rb7 {[%clk 0:02:25]}  h4 {[%clk 0:03:01]} 35. Rb8 {[%clk 0:01:22]}  Rxb8 {[%clk 0:02:43]} 36. Bxb8 {[%clk 0:01:51]}  Kf8 {[%clk 0:02:01]}
37. Kf1 {[%clk 0:02:00]}  Bg3 {[%clk 0:01:54]} 38. Ba7 {[%clk 0:01:37]}  Ke7 {[%clk 0:02:17]} 39. Ke2 {[%clk 0:01:45]}  Kd6 {[%clk 0:02:14]}
40. Kd2 {[%clk 0:01:57]}  Kd5 {[%clk 0:02:35]} 41. Kc3 {[%clk 0:30:26]}  Bd6 {[%clk 0:32:13]} 42. Bb6 {[%clk 0:27:33]}  Bc5 {[%clk 0:29:52]}
43. Bd8 {[%clk 0:26:55]}  f6 {[%clk 0:30:11]} 44. Kd2 {[%clk 0:24:31]}  Kc4 {[%clk 0:30:30]} 45. Ke2 {[%clk 0:21:48]}  Kb4 {[%clk 0:30:42]}
46. a5 {[%clk 0:22:10]}  Kb5 {[%clk 0:31:08]} 47. Bc7 {[%clk 0:21:58]}  Bb4 {[%clk 0:31:12]} 48. g3 {[%clk 0:22:15]}  Bxa5 {[%clk 0:29:33]}
49. Bb8 {[%clk 0:21:41]}  hxg3 {[%clk 0:29:20]} 50. Bxg3 {[%clk 0:22:07]}  Kc4 {[%clk 0:29:47]} 51. h4 {[%clk 0:21:56]}  Bc3 {[%clk 0:29:55]}
52. Kd1 {[%clk 0:22:19]}  Kd3 {[%clk 0:30:12]} 53. Bf4 {[%clk 0:22:40]}  Bd2 {[%clk 0:29:47]} 54. h5 {[%clk 0:22:54]}  Bxe3 {[%clk 0:30:08]} 0-1

[Event "2026 European Womens Championship"]
[Site "Batumi, GE"]
[Date "2026.06.01"]
[Round "7"]
[White "Orian, Noga"]
[Black "Toncheva, Nadya"]
[Result "0-1"]
[Board "66"]
[TimeControl "5400+30"]
[WhiteFideId "2836475"]
[BlackFideId "2924056"]
[WhiteElo "2231"]
[BlackElo "2320"]
[WhiteTitle "WIM"]
[BlackTitle "WGM"]
[WhiteClock "0:10:35"]
[BlackClock "0:28:34"]
[Variant "Standard"]

1. d4 {[%clk 1:30:57]}  d5 {[%clk 1:30:54]} 2. c4 {[%clk 1:31:22]}  e6 {[%clk 1:31:20]} 3. Nf3 {[%clk 1:31:47]}  Nf6 {[%clk 1:31:44]}
4. g3 {[%clk 1:32:13]}  Bb4+ {[%clk 1:32:09]} 5. Nbd2 {[%clk 1:32:39]}  O-O {[%clk 1:31:40]} 6. Bg2 {[%clk 1:32:58]}  dxc4 {[%clk 1:31:04]}
7. Qc2 {[%clk 1:33:15]}  a5 {[%clk 1:30:35]} 8. a3 {[%clk 1:33:39]}  Bxd2+ {[%clk 1:29:27]} 9. Bxd2 {[%clk 1:34:03]}  b5 {[%clk 1:29:01]}
10. a4 {[%clk 1:34:27]}  c6 {[%clk 1:28:43]} 11. h4 {[%clk 1:34:50]}  Bb7 {[%clk 1:20:19]} 12. h5 {[%clk 1:34:58]}  h6 {[%clk 1:20:43]}
13. g4 {[%clk 1:35:15]}  Nxg4 {[%clk 1:20:56]} 14. Bh3 {[%clk 1:35:29]}  Nf6 {[%clk 1:06:41]} 15. Bxh6 {[%clk 1:35:42]}  gxh6 {[%clk 1:04:05]}
16. Bxe6 {[%clk 1:36:05]}  Kh8 {[%clk 0:54:43]} 17. Ne5 {[%clk 1:36:17]}  Qxd4 {[%clk 0:50:28]} 18. Nxf7+ {[%clk 1:36:20]}  Rxf7 {[%clk 0:50:50]}
19. Rd1 {[%clk 1:36:06]}  Qc5 {[%clk 0:47:22]} 20. Bxf7 {[%clk 1:32:38]}  Nbd7 {[%clk 0:42:46]} 21. Be6 {[%clk 0:54:04]}  Nf8 {[%clk 0:36:34]}
22. Qc1 {[%clk 0:51:40]}  Qg5 {[%clk 0:29:22]} 23. Qxg5 {[%clk 0:51:27]}  hxg5 {[%clk 0:29:47]} 24. Bf5 {[%clk 0:50:53]}  Nd5 {[%clk 0:25:02]}
25. Rg1 {[%clk 0:46:40]}  Nh7 {[%clk 0:18:57]} 26. axb5 {[%clk 0:23:03]}  cxb5 {[%clk 0:19:23]} 27. Bxh7 {[%clk 0:21:36]}  Kxh7 {[%clk 0:19:49]}
28. Rxg5 {[%clk 0:22:00]}  b4 {[%clk 0:16:15]} 29. e4 {[%clk 0:19:06]}  Nf4 {[%clk 0:07:30]} 30. Rd7+ {[%clk 0:17:09]}  Kh6 {[%clk 0:07:54]}
31. Rb5 {[%clk 0:14:30]}  Bxe4 {[%clk 0:07:32]} 32. Rd4 {[%clk 0:13:53]}  Re8 {[%clk 0:06:31]} 33. Kd2 {[%clk 0:13:57]}  c3+ {[%clk 0:06:07]}
34. bxc3 {[%clk 0:13:56]}  bxc3+ {[%clk 0:06:32]} 35. Kxc3 {[%clk 0:12:47]}  Ne2+ {[%clk 0:06:54]} 36. Kc4 {[%clk 0:13:08]}  Nxd4 {[%clk 0:07:10]}
37. Kxd4 {[%clk 0:08:02]}  a4 {[%clk 0:07:34]} 38. Ra5 {[%clk 0:03:53]}  Bc2 {[%clk 0:07:57]} 39. Kc3 {[%clk 0:03:20]}  Bb3 {[%clk 0:07:54]}
40. f4 {[%clk 0:01:49]}  Re4 {[%clk 0:06:24]} 41. f5 {[%clk 0:27:53]}  Rf4 {[%clk 0:31:06]} 42. Ra6+ {[%clk 0:22:31]}  Kxh5 {[%clk 0:31:30]}
43. f6 {[%clk 0:22:57]}  Kg4 {[%clk 0:31:34]} 44. Kb2 {[%clk 0:21:23]}  Kf3 {[%clk 0:31:43]} 45. Ka3 {[%clk 0:20:16]}  Ke4 {[%clk 0:30:32]}
46. Rd6 {[%clk 0:11:00]}  Ke5 {[%clk 0:30:31]} 47. Rd2 {[%clk 0:11:10]}  Rxf6 {[%clk 0:30:54]} 48. Rh2 {[%clk 0:11:29]}  Kd4 {[%clk 0:28:53]}
49. Rh4+ {[%clk 0:10:57]}  Kc5 {[%clk 0:29:12]} 50. Rh5+ {[%clk 0:11:08]}  Bd5 {[%clk 0:28:10]} 51. Kxa4 {[%clk 0:10:35]}  Ra6# {[%clk 0:28:34]} 0-1

[Event "2026 European Womens Championship"]
[Site "Batumi, GE"]
[Date "2026.06.01"]
[Round "7"]
[White "Poliakova, Varvara"]
[Black "Kazarian, Anna-Maja"]
[Result "0-1"]
[Board "67"]
[TimeControl "5400+30"]
[WhiteFideId "13518313"]
[BlackFideId "1033689"]
[WhiteElo "2108"]
[BlackElo "2317"]
[WhiteTitle "WFM"]
[BlackTitle "FM"]
[WhiteClock "0:02:07"]
[BlackClock "0:03:59"]
[Variant "Standard"]

1. c4 {[%clk 1:30:15]}  Nf6 {[%clk 1:29:28]} 2. Nc3 {[%clk 1:30:06]}  e6 {[%clk 1:26:19]} 3. d4 {[%clk 1:26:56]}  Bb4 {[%clk 1:25:41]}
4. Qc2 {[%clk 1:27:15]}  O-O {[%clk 1:21:37]} 5. Bg5 {[%clk 1:24:39]}  h6 {[%clk 1:19:00]} 6. Bh4 {[%clk 1:24:35]}  d6 {[%clk 1:01:02]}
7. Nf3 {[%clk 1:14:17]}  Nbd7 {[%clk 0:59:40]} 8. O-O-O {[%clk 1:10:06]}  Bxc3 {[%clk 0:53:37]} 9. Qxc3 {[%clk 1:08:51]}  g5 {[%clk 0:53:15]}
10. Bg3 {[%clk 1:09:03]}  Ne4 {[%clk 0:53:11]} 11. Qc2 {[%clk 1:07:44]}  f5 {[%clk 0:53:00]} 12. Nd2 {[%clk 1:02:38]}  Nxd2 {[%clk 0:39:52]}
13. Rxd2 {[%clk 1:02:27]}  Nf6 {[%clk 0:40:16]} 14. f3 {[%clk 1:01:50]}  Qe7 {[%clk 0:39:35]} 15. e4 {[%clk 0:55:32]}  fxe4 {[%clk 0:37:05]}
16. fxe4 {[%clk 0:55:48]}  e5 {[%clk 0:36:46]} 17. d5 {[%clk 0:53:18]}  Bg4 {[%clk 0:34:18]} 18. Bf2 {[%clk 0:48:16]}  Bh5 {[%clk 0:33:51]}
19. h3 {[%clk 0:46:12]}  Bg6 {[%clk 0:29:25]} 20. Bd3 {[%clk 0:46:14]}  Nh5 {[%clk 0:26:26]} 21. Re1 {[%clk 0:38:00]}  Rf6 {[%clk 0:13:58]}
22. c5 {[%clk 0:36:34]}  Qf7 {[%clk 0:11:28]} 23. Bg1 {[%clk 0:33:52]}  Nf4 {[%clk 0:08:26]} 24. Bc4 {[%clk 0:31:28]}  Kg7 {[%clk 0:03:50]}
25. Qb3 {[%clk 0:31:16]}  b6 {[%clk 0:03:28]} 26. cxd6 {[%clk 0:30:55]}  cxd6 {[%clk 0:02:55]} 27. Ba6 {[%clk 0:30:49]}  Rd8 {[%clk 0:01:58]}
28. Rc2 {[%clk 0:29:51]}  Rd7 {[%clk 0:02:20]} 29. Qc4 {[%clk 0:29:35]}  Nxg2 {[%clk 0:02:25]} 30. Rd1 {[%clk 0:27:35]}  Bh5 {[%clk 0:01:49]}
31. Rdd2 {[%clk 0:27:19]}  Ne1 {[%clk 0:02:07]} 32. Rc3 {[%clk 0:26:51]}  Nf3 {[%clk 0:02:16]} 33. Rg2 {[%clk 0:25:45]}  Nxg1 {[%clk 0:02:22]}
34. Rxg1 {[%clk 0:26:13]}  Rf2 {[%clk 0:02:24]} 35. Qc6 {[%clk 0:22:44]}  Bg6 {[%clk 0:01:38]} 36. Bd3 {[%clk 0:19:45]}  Qf4+ {[%clk 0:00:50]}
37. Kb1 {[%clk 0:20:11]}  Rf7 {[%clk 0:00:54]} 38. Rd1 {[%clk 0:18:27]}  Bh5 {[%clk 0:00:45]} 39. Rdc1 {[%clk 0:18:33]}  Qd2 {[%clk 0:00:54]}
40. R1c2 {[%clk 0:13:36]}  Qe1+ {[%clk 0:01:00]} 41. Rc1 {[%clk 0:14:02]}  Qe3 {[%clk 0:28:11]} 42. Qxd6 {[%clk 0:42:16]}  Qd4 {[%clk 0:26:57]}
43. Qa3 {[%clk 0:36:38]}  Rd2 {[%clk 0:22:44]} 44. Bc2 {[%clk 0:33:24]}  Be2 {[%clk 0:22:08]} 45. Ka1 {[%clk 0:31:22]}  b5 {[%clk 0:16:01]}
46. Qd6 {[%clk 0:30:39]}  Bc4 {[%clk 0:15:52]} 47. h4 {[%clk 0:28:38]}  gxh4 {[%clk 0:15:44]} 48. Qe6 {[%clk 0:27:05]}  Rg2 {[%clk 0:11:34]}
49. Qh3 {[%clk 0:19:04]}  Qd2 {[%clk 0:09:14]} 50. Rd1 {[%clk 0:17:43]}  Qg5 {[%clk 0:06:29]} 51. b3 {[%clk 0:15:33]}  Be2 {[%clk 0:06:34]}
52. Rh1 {[%clk 0:14:38]}  Bf1 {[%clk 0:04:35]} 53. Rxf1 {[%clk 0:01:39]}  Rxf1+ {[%clk 0:05:00]} 54. Bb1 {[%clk 0:02:02]}  Rf7 {[%clk 0:04:08]}
55. d6 {[%clk 0:01:21]}  Qd2 {[%clk 0:03:02]} 56. Rc2 {[%clk 0:00:58]}  Qd4+ {[%clk 0:03:28]} 57. Qc3 {[%clk 0:01:15]}  Rxc2 {[%clk 0:03:12]}
58. Qxd4 {[%clk 0:01:40]}  exd4 {[%clk 0:03:38]} 59. Bxc2 {[%clk 0:02:07]}  Kf6 {[%clk 0:03:59]} 0-1

[Event "2026 European Womens Championship"]
[Site "Batumi, GE"]
[Date "2026.06.01"]
[Round "7"]
[White "Sliwicka, Alicja"]
[Black "Kobak, Polina"]
[Result "0-1"]
[Board "68"]
[TimeControl "5400+30"]
[WhiteFideId "1150677"]
[BlackFideId "24269727"]
[WhiteElo "2315"]
[BlackElo "1986"]
[WhiteTitle "WGM"]
[BlackTitle "WFM"]
[WhiteClock "0:01:01"]
[BlackClock "0:03:48"]
[Variant "Standard"]

1. e4 {[%clk 1:30:51]}  e6 {[%clk 1:30:54]} 2. d4 {[%clk 1:31:15]}  d5 {[%clk 1:31:20]} 3. Nc3 {[%clk 1:31:38]}  Nc6 {[%clk 1:31:39]}
4. Nf3 {[%clk 1:24:19]}  Nf6 {[%clk 1:32:02]} 5. Bd3 {[%clk 1:19:16]}  Nb4 {[%clk 1:32:13]} 6. e5 {[%clk 1:14:37]}  Nxd3+ {[%clk 1:32:36]}
7. cxd3 {[%clk 1:12:31]}  Ng8 {[%clk 1:32:24]} 8. Ne2 {[%clk 1:05:42]}  h6 {[%clk 1:23:23]} 9. h4 {[%clk 1:04:49]}  a5 {[%clk 1:19:18]}
10. Nf4 {[%clk 1:00:28]}  Ne7 {[%clk 1:16:22]} 11. Nh5 {[%clk 0:58:11]}  b6 {[%clk 1:13:00]} 12. b3 {[%clk 0:55:14]}  Ng6 {[%clk 1:00:17]}
13. Kf1 {[%clk 0:49:22]}  Ba6 {[%clk 0:59:06]} 14. g3 {[%clk 0:42:50]}  Qd7 {[%clk 0:50:55]} 15. a4 {[%clk 0:40:09]}  O-O-O {[%clk 0:38:52]}
16. Kg2 {[%clk 0:39:58]}  Kb8 {[%clk 0:27:45]} 17. Bb2 {[%clk 0:34:49]}  Rg8 {[%clk 0:25:52]} 18. Qd2 {[%clk 0:31:57]}  Be7 {[%clk 0:23:50]}
19. Rhe1 {[%clk 0:25:54]}  Rdf8 {[%clk 0:19:40]} 20. Bc3 {[%clk 0:21:51]}  f6 {[%clk 0:17:48]} 21. exf6 {[%clk 0:20:10]}  gxf6 {[%clk 0:18:13]}
22. Rad1 {[%clk 0:11:08]}  Bb7 {[%clk 0:14:29]} 23. Nf4 {[%clk 0:05:10]}  Nxf4+ {[%clk 0:11:16]} 24. Qxf4 {[%clk 0:05:38]}  e5 {[%clk 0:11:04]}
25. Qxh6 {[%clk 0:04:50]}  e4 {[%clk 0:09:15]} 26. Nh2 {[%clk 0:03:33]}  Bd6 {[%clk 0:07:20]} 27. dxe4 {[%clk 0:02:34]}  dxe4 {[%clk 0:07:46]}
28. d5 {[%clk 0:02:54]}  f5 {[%clk 0:07:50]} 29. Bf6 {[%clk 0:01:01]}  Bc8 {[%clk 0:04:51]} 30. Bg5 {[%clk 0:01:14]}  Qf7 {[%clk 0:03:43]}
31. h5 {[%clk 0:01:34]}  f4 {[%clk 0:03:38]} 32. Rf1 {[%clk 0:01:06]}  Qf5 {[%clk 0:02:45]} 33. Bh4 {[%clk 0:01:13]}  Qh3+ {[%clk 0:02:59]}
34. Kh1 {[%clk 0:01:36]}  Bg4 {[%clk 0:03:10]} 35. f3 {[%clk 0:00:57]}  Bxf3+ {[%clk 0:03:07]} 36. Rxf3 {[%clk 0:01:22]}  exf3 {[%clk 0:03:33]}
37. Rd2 {[%clk 0:01:01]}  fxg3 {[%clk 0:03:48]} 0-1

[Event "2026 European Womens Championship"]
[Site "Batumi, GE"]
[Date "2026.06.01"]
[Round "7"]
[White "Antova, Gabriela"]
[Black "Danielian, Elina"]
[Result "0-1"]
[Board "69"]
[TimeControl "5400+30"]
[WhiteFideId "2915235"]
[BlackFideId "13300210"]
[WhiteElo "2203"]
[BlackElo "2390"]
[WhiteTitle "WGM"]
[BlackTitle "GM"]
[WhiteClock "0:29:13"]
[BlackClock "0:22:51"]
[Variant "Standard"]

1. e4 {[%clk 1:30:48]}  d6 {[%clk 1:30:16]} 2. d4 {[%clk 1:30:59]}  Nf6 {[%clk 1:30:06]} 3. Nc3 {[%clk 1:31:10]}  g6 {[%clk 1:30:31]}
4. Be3 {[%clk 1:30:52]}  c6 {[%clk 1:30:57]} 5. Qd2 {[%clk 1:31:05]}  Nbd7 {[%clk 1:30:12]} 6. a4 {[%clk 1:25:46]}  Qc7 {[%clk 1:30:02]}
7. f3 {[%clk 1:23:20]}  b6 {[%clk 1:26:04]} 8. g4 {[%clk 1:14:43]}  Bb7 {[%clk 1:24:31]} 9. g5 {[%clk 0:58:53]}  Nh5 {[%clk 1:24:51]}
10. Nge2 {[%clk 0:58:43]}  h6 {[%clk 1:18:43]} 11. gxh6 {[%clk 0:54:53]}  a6 {[%clk 1:19:00]} 12. Ng3 {[%clk 0:52:23]}  Nhf6 {[%clk 1:14:51]}
13. h4 {[%clk 0:47:41]}  d5 {[%clk 0:59:01]} 14. e5 {[%clk 0:46:01]}  c5 {[%clk 0:57:59]} 15. Bf4 {[%clk 0:25:55]}  cxd4 {[%clk 0:58:08]}
16. Nce2 {[%clk 0:26:21]}  Nxe5 {[%clk 0:57:41]} 17. Nxd4 {[%clk 0:26:46]}  Bxh6 {[%clk 0:29:09]} 18. Nge2 {[%clk 0:12:11]}  Bxf4 {[%clk 0:28:57]}
19. Qxf4 {[%clk 0:09:06]}  O-O-O {[%clk 0:27:34]} 20. O-O-O {[%clk 0:08:12]}  Nc4 {[%clk 0:23:07]} 21. Qg5 {[%clk 0:07:47]}  Rh5 {[%clk 0:22:03]}
22. Qg1 {[%clk 0:08:12]}  e5 {[%clk 0:18:31]} 23. Nb3 {[%clk 0:08:23]}  d4 {[%clk 0:18:24]} 24. Ng3 {[%clk 0:07:00]}  Ne3 {[%clk 0:18:41]}
25. Rd2 {[%clk 0:07:07]}  Rhh8 {[%clk 0:18:19]} 26. Bd3 {[%clk 0:06:30]}  Nfd5 {[%clk 0:17:49]} 27. Rhh2 {[%clk 0:05:09]}  Kb8 {[%clk 0:18:03]}
28. a5 {[%clk 0:05:01]}  bxa5 {[%clk 0:18:08]} 29. Ne4 {[%clk 0:05:18]}  Ka7 {[%clk 0:09:21]} 30. Nec5 {[%clk 0:05:13]}  Rb8 {[%clk 0:09:12]}
31. Qg3 {[%clk 0:04:22]}  Nf4 {[%clk 0:07:01]} 32. Kb1 {[%clk 0:03:59]}  Rhc8 {[%clk 0:06:51]} 33. Qg5 {[%clk 0:03:39]}  a4 {[%clk 0:04:20]}
34. Nxa4 {[%clk 0:03:57]}  Qd6 {[%clk 0:01:59]} 35. Be4 {[%clk 0:02:16]}  Bxe4 {[%clk 0:02:03]} 36. fxe4 {[%clk 0:02:33]}  f6 {[%clk 0:01:44]}
37. Qg1 {[%clk 0:02:22]}  Qb4 {[%clk 0:01:52]} 38. Nc3 {[%clk 0:02:24]}  Ka8 {[%clk 0:00:59]} 39. Nd1 {[%clk 0:02:33]}  Nc4 {[%clk 0:01:16]}
40. Rdf2 {[%clk 0:02:46]}  a5 {[%clk 0:01:11]} 41. Rxf4 {[%clk 0:02:08]}  exf4 {[%clk 0:01:35]} 42. Qxg6 {[%clk 0:01:50]}  a4 {[%clk 0:25:27]}
43. Qxf6 {[%clk 0:31:06]}  Rb6 {[%clk 0:25:47]} 44. Qf5 {[%clk 0:31:31]}  Rcb8 {[%clk 0:24:06]} 45. Qd5+ {[%clk 0:31:09]}  Ka7 {[%clk 0:24:17]}
46. Nxd4 {[%clk 0:29:13]}  Qxb2+ {[%clk 0:22:51]} 0-1

[Event "2026 European Womens Championship"]
[Site "Batumi, GE"]
[Date "2026.06.01"]
[Round "7"]
[White "Efroimski, Marsel"]
[Black "Charkhalashvili, Inga"]
[Result "1-0"]
[Board "70"]
[TimeControl "5400+30"]
[WhiteFideId "2810964"]
[BlackFideId "13601431"]
[WhiteElo "2386"]
[BlackElo "2235"]
[WhiteTitle "IM"]
[BlackTitle "WGM"]
[WhiteClock "0:19:39"]
[BlackClock "0:57:19"]
[Variant "Standard"]

1. e4 {[%clk 1:27:37]}  c6 {[%clk 1:30:54]} 2. d4 {[%clk 1:28:02]}  d5 {[%clk 1:31:19]} 3. e5 {[%clk 1:28:30]}  Bf5 {[%clk 1:31:43]}
4. h4 {[%clk 1:28:58]}  h5 {[%clk 1:31:50]} 5. Bd3 {[%clk 1:29:25]}  Bxd3 {[%clk 1:32:03]} 6. Qxd3 {[%clk 1:29:53]}  e6 {[%clk 1:32:25]}
7. Bg5 {[%clk 1:30:19]}  Qb6 {[%clk 1:30:09]} 8. Nd2 {[%clk 1:30:11]}  Ne7 {[%clk 1:29:37]} 9. Ngf3 {[%clk 1:24:40]}  Nf5 {[%clk 1:29:48]}
10. O-O {[%clk 1:10:16]}  Nd7 {[%clk 1:26:38]} 11. c4 {[%clk 1:06:22]}  Qa6 {[%clk 1:24:34]} 12. b3 {[%clk 1:05:58]}  Be7 {[%clk 1:23:35]}
13. Bxe7 {[%clk 0:47:09]}  Kxe7 {[%clk 1:23:21]} 14. a4 {[%clk 0:42:27]}  Rhd8 {[%clk 1:17:30]} 15. Qc3 {[%clk 0:29:23]}  Kf8 {[%clk 1:16:54]}
16. Rfc1 {[%clk 0:26:30]}  g6 {[%clk 1:13:46]} 17. cxd5 {[%clk 0:22:04]}  cxd5 {[%clk 1:04:39]} 18. Qb4+ {[%clk 0:21:54]}  Ke8 {[%clk 1:04:07]}
19. Rc7 {[%clk 0:21:32]}  b6 {[%clk 0:58:26]} 20. Rac1 {[%clk 0:20:06]}  Rac8 {[%clk 0:57:27]} 21. Nf1 {[%clk 0:18:57]}  Rxc7 {[%clk 0:57:03]}
22. Rxc7 {[%clk 0:19:25]}  Rc8 {[%clk 0:57:19]} 23. Qb5 {[%clk 0:19:39]} 1-0